Cogmind - Beta 13 @@@ ROGUE MODE // 2024.04.10 @ 19:56:44 Player: Copyrite Result: Destroyed by S-10 Pest with Light Assault Rifle Performance ------------- Evolutions (0) 0 Regions Visited (3) 600 Robots Destroyed (24) 120 Value Destroyed (603) 603 Prototype IDs (0) 0 Alien Tech Used (0) 0 Bonus (-219) -219 TOTAL SCORE: 1104 Bonus ------- Follower Combat Kills 72 Friendly Fire -291 Cogmind --------- Core Integrity 0/250 Matter 154/300 Energy 100/100 System Corruption 1% Temperature Cool (0) Movement Treading (160) Location -10/Subcaves Parts ------- > --- POWER (1) -------- (None) > --- PROPULSION (2) --- Light Treads > --- UTILITY (2) ------ Medium Storage Unit Improved Signal Interpreter > --- WEAPON (2) ------- Subdweller Laser Makeshift Spear > --- INVENTORY (10) --- Light Ion Engine Sensor Array Targeting Computer ECM Suite Reaction Control System Cobbler Unit Peak State ------------ > --- POWER ------------ Ion Engine > --- PROPULSION ------- Improved Treads Improved Treads > --- UTILITY ---------- Medium Storage Unit Improved Signal Interpreter > --- WEAPON ----------- Assault Rifle Rocket Launcher > --- INVENTORY -------- Light Ion Engine Light Treads Light Treads Sensor Array Targeting Computer ECM Suite Reaction Control System Light Armor Plating Grenade Launcher Mace [Rating: 13] Favorites ----------- Power Ion Engine Engine Ion Engine Propulsion Improved Treads Treads Improved Treads Utility Medium Storage Unit Device Sensor Array Storage Medium Storage Unit Processor Improved Signal Interpreter Protection Light Armor Plating Weapon Assault Rifle Energy Gun Subdweller Laser Ballistic Gun Assault Rifle Launcher Rocket Launcher Impact Weapon Mace Piercing Weapon Makeshift Spear Build | -11 -10 -10 -10 ------- Run | Yrd Mat Min Sub Slots Evolved . | . . . . Power . | . . . . Propulsion . | . . . . Utility . | . . . . Weapon . | . . . . Parts Attached 30 | 6 14 3 7 Power 2 | 1 . 1 . Engine 2 | 1 . 1 . Core . | . . . . Reactor . | . . . . Propulsion 8 | 2 4 . 2 Treads 8 | 2 4 . 2 Leg . | . . . . Wheel . | . . . . Hover . | . . . . Flight . | . . . . Utility 5 | 1 3 1 . Device 1 | . 1 . . Storage 2 | 1 1 . . Processor 1 | . . 1 . Hackware . | . . . . Protection 1 | . 1 . . Artifact . | . . . . Weapon 15 | 2 7 1 5 Energy Gun 1 | . . . 1 Energy Cannon . | . . . . Ballistic Gun 6 | 2 4 . . Ballistic Cannon . | . . . . Launcher 3 | . . 1 2 Special Weapon . | . . . . Impact Weapon 4 | . 3 . 1 Slashing Weapon . | . . . . Piercing Weapon 1 | . . . 1 Special Melee Weapon . | . . . . Unidentified Prototypes . | . . . . Parts Lost 9 | . 3 1 5 Power 3 | . 1 1 1 Propulsion 3 | . 2 . 1 Utility . | . . . . Weapon 3 | . . . 3 Highest Loss Streak 2 | . 2 1 2 To Critical Strikes . | . . . . Average Slot Usage (%) 93 | . 87 99 94 Engine 13 | . 13 13 14 Treads 27 | . 27 28 27 Storage 14 | . 14 14 14 Processor 7 | . . 6 14 Protection 1 | . . 7 . Ballistic Gun 16 | . 24 18 9 Launcher 7 | . . 9 12 Impact Weapon 1 | . 3 . . Naked Turns . | . . . . Heaviest Build 24 | 12 19 24 21 Greatest Support 46 | 40 46 46 46 Greatest Overweight (x) 1 | 1 . . 1 Average Overweight (x) . | . . . . Largest Inventory Capacity 10 | 8 10 10 10 Average Capacity 9 | 6 9 10 10 Most Carried 10 | 4 10 10 10 Average Carried 8 | 2 6 9 9 Final Capacity 10 | 8 10 10 10 Final Carried 10 | 4 9 10 7 Class Distribution -------------------- 100% | Mutant Dominant Class ---------------- Mutant | -10/Materials Mutant | -10/Mines Mutant | -10/Subcaves Resources | -11 -10 -10 -10 ----------- Run | Yrd Mat Min Sub Matter Collected 900 | 215 133 276 276 Remotely . | . . . . Salvage Created 579 | . 174 238 167 Parts 31 | . 8 13 10 Haulers Intercepted . | . . . . Recyclers Shooed . | . . . . Parts Field Recycled . | . . . . Retrieved Matter . | . . . . Parts Self-Destructed 6 | . . . 6 Prevented . | . . . . Kills | -11 -10 -10 -10 ------- Run | Yrd Mat Min Sub Combat Hostiles Destroyed 21 | . 8 7 6 Melee 1 | . . . 1 Guns 12 | . 8 4 . AOE 8 | . . 3 5 Classes Destroyed 6 | . 3 . 3 Tunneler 2 | . 1 1 . Swarmer 9 | . 6 3 . Grunt 9 | . 2 5 2 Sentry 1 | . . . 1 Cobbler 1 | . . . 1 Subdweller 3 | . . . 3 Best Kill Streak 3 | . 3 3 2 Combat Bots Only 3 | . 3 3 2 Max Kills in Single Turn 2 | . 1 2 1 Gunslinging . | . . . . Exploded 2 | . . 2 1 Melee 1 | . . . 1 Uniques/NPCs Destroyed . | . . . . Combat | -11 -10 -10 -10 -------- Run | Yrd Mat Min Sub Hostile Shots Fired 180 | . 106 35 39 Missed 43 | . 25 8 10 Damage Taken 1771 | . 767 419 585 Core 257 | . 77 69 111 Absorbed by Shields . | . . . . Core Remaining (%) 100 | 100 . . . Volleys Fired 121 | . 52 26 43 Largest 2 | . 2 2 2 Hottest 53 | . 40 40 53 Shots Fired 159 | . 73 42 44 Gun 126 | . 73 36 17 Cannon . | . . . . Launcher 33 | . . 6 27 Special . | . . . . Kinetic 126 | . 73 36 17 Thermal . | . . . . Explosive 33 | . . 6 27 Electromagnetic . | . . . . Robot Hit Streak 13 | . 11 13 6 Robot Miss Streak 4 | . 4 4 1 Penetration Max . | . . . . Secondary Targets 2 | . 2 . . Max Gunslinging Chain 1 | . 1 . . Shots Hit Robots 104 | . 53 25 26 Core Hits 53 | . 17 19 17 Critical Kills . | . . . . Critical Parts Destroyed 1 | . . 1 . Critical Strikes 2 | . . 1 1 Destroy 1 | . . 1 . Impale 1 | . . . 1 Melee Attacks 32 | . 16 . 16 Impact 28 | . 16 . 12 Slashing . | . . . . Piercing 4 | . . . 4 Sneak Attacks 1 | . 1 . . Combat Hostiles . | . . . . Follow-up Attacks . | . . . . Damage Inflicted 2237 | 8 510 796 923 Guns 843 | . 419 275 149 Cannons . | . . . . Explosions 1184 | . . 519 665 Melee 197 | . 88 . 109 Ramming 13 | 8 3 2 . Kinetic 843 | . 419 275 149 Thermal 182 | . . 182 . Explosive 1002 | . . 337 665 Electromagnetic . | . . . . Impact 88 | . 88 . . Slashing . | . . . . Piercing 109 | . . . 109 Highest Corruption 1 | . 1 1 1 Average Corruption 1 | . 1 1 1 Corruption Purged . | . . . . Corruption Blocked . | . . . . Effects 19 | . 4 5 10 Message Errors 5 | . 1 1 3 Matter Fused 3 | . 2 . 1 Heat Flow Errors 3 | . 1 1 1 Energy Discharges 3 | . . . 3 Data Loss (minor) 1 | . . . 1 Data Loss (major) 1 | . . . 1 Misfires 2 | . . 2 . Weapon Failures 1 | . . 1 . Overload Shots . | . . . . Overflow Damage 123 | . 68 19 36 Projectiles . | . . . . Explosions 55 | . . 19 36 Melee 68 | . 68 . . Knockbacks . | . . . . Impact . | . . . . Kinetic . | . . . . Secondary . | . . . . Self-Inflicted Damage 178 | . . 104 74 Shots 5 | . . 2 3 Rammed 4 | 2 1 1 . Targets Rammed 4 | 2 1 1 . Kicked . | . . . . Crushed . | . . . . Highest Temperature 214 | . 82 214 82 Average Temperature 29 | . 17 42 32 Received Heat Transfer 480 | . 174 156 150 Siege Activations . | . . . . Robots Corrupted . | . . . . Combat Hostiles . | . . . . Parts Fried 3 | . 3 . . Impact Corruptions 2 | . 2 . . Robots Melted . | . . . . Combat Hostiles . | . . . . Parts Melted . | . . . . Heat Transferred 250 | . . 250 . Parts Sabotaged . | . . . . Parts Stolen . | . . . . Parts Stripped . | . . . . Power Chain Reactions . | . . . . Alert | -11 -10 -10 -10 ------- Run | Yrd Mat Min Sub Peak Influence 271 | . 142 271 . Initial 12 | . . 12 . Average 80 | . 51 131 . Maximum Alert Level 1 | . . 1 . Low Security (%) 99 | 100 100 98 . Level 1 . | . . 1 . Level 2 . | . . . . Level 3 . | . . . . Level 4 . | . . . . Level 5 . | . . . . High Security . | . . . . Max Security . | . . . . Squads Dispatched 2 | . 1 1 . Investigation 1 | . . 1 . Extermination . | . . . . Reinforcement 1 | . 1 . . Assault . | . . . . Garrison . | . . . . Intercept . | . . . . Searches Triggered . | . . . . Construction Impeded . | . . . . Haulers Reinforced . | . . . . Active Scanning Responses . | . . . . Cargo Convoy Interrupts . | . . . . Stealth | -11 -10 -10 -10 --------- Run | Yrd Mat Min Sub Distress Signals . | . . . . Communications Jammed . | . . . . Distress Signals . | . . . . Times Spotted 42 | . 19 14 9 Peak Tracking Total 4 | . 4 3 3 Tactical Retreats 1 | . 1 . . Traps | -11 -10 -10 -10 ------- Run | Yrd Mat Min Sub Traps Triggered 1 | . 1 . . Indirectly . | . . . . Trap Hack Attempts . | . . . . Triggered . | . . . . Disarmed . | . . . . Reprogrammed . | . . . . Reused . | . . . . Traps Extracted . | . . . . Installed . | . . . . Triggered . | . . . . Machines | -11 -10 -10 -10 ---------- Run | Yrd Mat Min Sub Machines Disabled 1 | . . 1 . Max in Single Turn 1 | . . 1 . Machines Repaired . | . . . . Machines Dismantled . | . . . . Machines Sabotaged . | . . . . Overloaded Fab Kills . | . . . . Hacking | -11 -10 -10 -10 --------- Run | Yrd Mat Min Sub Machines Accessed 9 | . 8 1 . Terminals 7 | . 7 . . Fabricators . | . . . . Repair Stations 1 | . 1 . . Recycling Units . | . . . . Scanalyzers . | . . . . Garrison Access . | . . . . Total Hacks 19 | . 18 1 . Successful 9 | . 8 1 . Failed 10 | . 10 . . Catastrophic 3 | . 3 . . Database Lockouts . | . . . . Manual 15 | . 15 . . Terminals 17 | . 17 . . Fabricators . | . . . . Repair Stations 1 | . 1 . . Recycling Units . | . . . . Scanalyzers . | . . . . Garrison Access . | . . . . Terminal Hacks 3 | . 2 1 . Open Door 1 | . . 1 . Branch Access Points 1 | . 1 . . Terminal Index 1 | . 1 . . Fabricator Hacks . | . . . . Repair Station Hacks 1 | . 1 . . Refit 1 | . 1 . . Recycling Unit Hacks . | . . . . Scanalyzer . | . . . . Garrison Access Hacks . | . . . . Unauthorized Hacks 5 | . 5 . . Terminals 5 | . 5 . . Botnet 5 | . 5 . . Fabricators . | . . . . Repair Stations . | . . . . Recycling Units . | . . . . Scanalyzers . | . . . . Garrison Access . | . . . . Data Cores Recovered . | . . . . Used . | . . . . Hacking Detections 7 | . 7 . . Full Trace Events . | . . . . Feedback Events . | . . . . Feedback Blocked . | . . . . Robot Schematics Acquired . | . . . . Robots Built . | . . . . Authchips . | . . . . Time . | . . . . Total Robot Build Rating . | . . . . Part Schematics Acquired . | . . . . Parts Built . | . . . . Authchips . | . . . . Time . | . . . . Total Part Build Rating . | . . . . Parts Repaired . | . . . . Time . | . . . . Parts Recycled . | . . . . Recycled Matter . | . . . . Retrieved Matter . | . . . . Retrieved Components . | . . . . Parts Scanalyzed . | . . . . Part Schematics Acquired . | . . . . Parts Damaged . | . . . . Bothacking | -11 -10 -10 -10 ------------ Run | Yrd Mat Min Sub Used RIF Installer . | . . . . Robots Hacked . | . . . . Non-combat . | . . . . Combat . | . . . . Robot Hacks Applied . | . . . . Relay Couplers Released . | . . . . Fabnet Peak Effective % . | . . . . Robots Rewired . | . . . . Allies Hacked . | . . . . Hacks Repelled . | . . . . Allies | -11 -10 -10 -10 -------- Run | Yrd Mat Min Sub Total Allies 4 | . . 4 . Largest Group 4 | . . 4 2 Highest-Rated Group 71 | . . 71 24 Highest-Rated Ally 31 | . . 31 16 Total Orders . | . . . . Ally Attacks 14 | . . 11 3 Total Damage 194 | . . 171 23 Kills 7 | . . 6 1 Allies Corrupted . | . . . . Allies Melted . | . . . . Intel | -11 -10 -10 -10 ------- Run | Yrd Mat Min Sub Robot Analysis Total . | . . . . Derelict Logs Recovered 3 | . . 2 1 Drone Launches . | . . . . Drone Recoveries . | . . . . Exploration | -11 -10 -10 -10 ------------- Run | Yrd Mat Min Sub Turns Passed 2751 | 73 897 625 1156 Spaces Moved 1390 | 39 418 315 618 Core 5 | 5 . . . Treads 1385 | 34 418 315 618 Legs . | . . . . Wheels . | . . . . Hover . | . . . . Flight . | . . . . Fastest Speed 50 | 50 160 160 160 Average Speed 160 | 149 160 160 162 Slowest Speed 240 | 160 160 160 240 Overloaded Moves . | . . . . Propulsion Burnouts . | . . . . Robots Hopped . | . . . . Cave-ins Triggered . | . . . . Exploration Rate (%) 47 | 5 75 64 45 Regions Visited 3 Branch Regions 2 Pre-discovered Areas 2 | . . 1 1 Known Exits Taken 2 | . 1 1 . Unknown Exits Taken 1 | 1 . . . Scrap Searched 1 | . . 1 . Spaces Dug 13 | . 11 . 2 Terrain Destroyed 224 | . 11 49 164 Melee 13 | . 11 . 2 Projectile . | . . . . AOE 211 | . . 49 162 Terrain Rammed . | . . . . Walls Destroyed . | . . . . Machines Disabled . | . . . . Actions | -11 -10 -10 -10 --------- Run | Yrd Mat Min Sub Total 1705 | 50 558 396 701 Wait 86 | . 38 41 7 Move 1387 | 38 417 314 618 Hop . | . . . . Pick Up 26 | 4 12 6 4 Fast Attach 9 | 6 1 1 1 Attach 6 | . 3 . 3 Detach . | . . . . Swap 15 | . 10 2 3 Drop 19 | . 8 5 6 Fire 121 | . 52 26 43 Melee 32 | . 16 . 16 Ram . | . . . . Kick . | . . . . Crush 4 | 2 1 1 . Escape Stasis . | . . . . Rewire . | . . . . Trap . | . . . . Miscellaneous . | . . . . Route ------- -11/Scrapyard -10/Materials (discovered 4 exits: *Mat x2 / *Min x2) -10/Mines (discovered 3 exits: *Mat x2 / *Sub) -10/Subcaves History --------- Turn | Location | Event 16 | -11/Scrapyard | Discovered new exit (range 16) 74 | -11/Scrapyard | Entered Materials 82 | -10/Materials | Discovered new exit (range 7) 316 | -10/Materials | Build established: Mutant 462 | -10/Materials | Discovered new exit (range 5) 546 | -10/Materials | Discovered new exit (range 16) 650 | -10/Materials | Discovered new exit (range 5) 708 | -10/Materials | Identified exit to Mines 971 | -10/Materials | Entered Mines 1026 | -10/Mines | Met a Derelict shopkeep closing up shop 1092 | -10/Mines | Identified exit to Subcaves 1173 | -10/Mines | Discovered new exit (range 11) 1185 | -10/Mines | Received a Rocket Launcher from a helpful Derelict 1197 | -10/Mines | Core integrity fell below 50% 1288 | -10/Mines | Received a Mining Laser from a helpful Derelict 1332 | -10/Mines | Identified exit to Materials 1386 | -10/Mines | Discovered exit to Materials (range 10) 1400 | -10/Mines | Assisted by bots powering up and referring to "LRC-V3" 1596 | -10/Mines | Entered Subcaves 1596 | -10/Subcaves | Accompanied by 2 allies 2208 | -10/Subcaves | Shifting Twisted Machinery released Sub. Monowheel 2223 | -10/Subcaves | Shifting Twisted Machinery released Mak. Spear 2225 | -10/Subcaves | Learned location of Zion (-7) 2225 | -10/Subcaves | Met a Zionite searching for "candidates" 2259 | -10/Subcaves | Learned Materials security intel 2305 | -10/Subcaves | A swath of the cavern ceiling suddenly collapsed 2689 | -10/Subcaves | Core integrity fell below 20% 2752 | -10/Subcaves | Destroyed by S-10 Pest with Light Assault Rifle Last Messages --------------- System corrupted: Energy discharge (-77). System corrupted: Matter fused (-7). Critical hit (Burn: +37). Y-45 Defender destroyed. Acquired 20 matter. The unstable cave ceiling collapses. System corrupted: Energy discharge (-80). FJ-W8X(u) builds Twisted Machinery. H#8H55HDJHFZMKRQNDIJVF LP-R4T(R) destroyed. Lgt. Treads destroyed. Grenade Launcher destroyed. W5-P1G(R) suffers critical hit (Impale). W5-P1G(R) destroyed. Acquired 15 matter. Acquired Sub. Laser. Subatomizers dissect the Sub. Monowheel. Acquired 36 matter. Subatomizers dissect the Disposable Heat Sink. Ion Engine destroyed. Map ----- +----------------------------------------------------+ | ????????????????????????????????????????????????? | | ????????????????????????????????????????????????? | | ????????????????????????????????????????????????? | | ????????????????????????????????????????????????? | | ????????????????????????????????????????????????? | | ????????????????????????????????????????????????? | | ???????????????????????? ??????????????????????? | | ??????????????????????? ??? ?????????????????? | | ???????????????????????# ?? ?????????????????? | | ???????????????????????# ?? #?????????????????? | | ??????????????????????## ?? ?????????????????? | | ?????????????????????? ?? #?????????????????? | | ?????????????????????? ## ?????????????????? | | ??????????????????????? ??????????????????? | | ??????????????????????? ??????????????????? | | ??????????????????????## #??????????????????? | | ??????????????????????# ###????????????????? | | ??????????????????????? ##???????????????? | | ???????????????????????? ????????????????? | | ????????????????????????# #?????????????????? | | ????????????????????????# #??????????????????? | | ????????????????????????# #??????????????????? | | ???????????????????????## #??????????????????? | | ??????????????????????## #??????????????????? | | ?????????????????????## #??????????????????? | | ?????????????????????# @ ###??????????????????? | | ????????????????????## ##????????????????????? | | ????????????????????# #????????????????????? | | ????????????????????#### #####?????????????????? | | ??????????????????????### ##!#####?????????????? | | ??????????????????????# =&&& #?????????????? | | ??????????????????????## && ""##?????????????? | | ???????????????????##### """ #??????????????? | | ???????????????????# #??????????????? | | ???????????????????# " #??????????????? | | ???????????????????# #??????????????? | | ???????????????????## #??????????????? | | ????????????????????## & #??????????????? | | ?????????????????????### #??????????????? | | ???????????????????????# "#??????????????? | | ??????????????????# ??## #??????????????? | | ???????? ???????# ??# " #??????????????? | | ????????# ????## ??## ###??????????????? | | ???????#" "##?# #???# #???????????????? | | ???????? " ## #???# #???????????????? | | ????????? ???## #???????????????? | | ?????????? ??## ##???????????????? | | #??????????? ??# ##????????????????? | | ##???????????# #??# ###?????????????????? | | ##???????????# #### ### #??????????????? | +----------------------------------------------------+ Best States ------------- Heat Dissipation 25 Energy Generation 11 Energy Capacity 250 Matter Stores 300 Matter Capacity 300 Sight Range 16 Robot Scan Range 14 Terrain Scan Density 10 Armor Coverage 150 Evasion (%) 40 Recoil Reduction 2 Item Schematics ----------------- None Robot Schematics ------------------ None Fabricated ------------ Nothing Alien Tech Used ----------------- None Achievements -------------- None Challenges ------------ None Game ------ Seed WardroneGrenadeGuard Manual? 0 Play Time 00:24:45 Cumulative 18.4 hours Start 2024.04.10 @ 19:32:10 End 2024.04.10 @ 19:56:44 Sessions 1 Manual Loads 0 Difficulty Rogue Special Mode None Game No. 37 Rogue 37 Adventurer 0 Explorer 0 Win Type - Total 0 Types 0/0/0/0/0/0/0/0/0 Lore% 15 Gallery% 22 Achievement% 23 Wizard Run 0 Options --------- Layout 1 ASCII 0 Keyboard 0 Movement Numpad Keybinds 0 Fullscreen 1 Font 32/SmallcapsGlow Map View 50x35 Zoom Use 0% Tactical HUD 0 Map Filters NONE Filters NONE Steam 1 RUN: 48bec000-faa1-44fe-8d10-85cb0fa469d9